fUST/lending_fUST_20250624
["ID","MTS","AMOUNT","RATE_DAILY","PERIOD"]
[367193022,1750697461445,-399.49212792,0.00021673,2]
[367193023,1750697461454,-500.0,0.00021673,2]
[367193024,1750697461464,-500.0,0.00021673,2]
[367193025,1750697461473,-485.84,0.00021705,2]
[367193026,1750697461482,-2125.8,0.00021705,2]
[367193027,1750697461492,-437.24886619,0.00021721,2]
[367193028,1750697461501,-1000.0,0.0002173,2]
[367193029,1750697461511,-1000.0,0.0002173,2]
[367193030,1750697461521,-1000.0,0.0002173,2]
[367193031,1750697461531,-1000.0,0.00021737,2]
[367193032,1750697461540,-1000.0,0.00021737,2]
[367193033,1750697461550,-2125.8,0.00021753,2]
[367193034,1750697461560,-460.0,0.00021754,2]
[367193035,1750697461570,-460.0,0.00021754,2]
[367193036,1750697461579,-460.0,0.00021754,2]
[367193037,1750697461588,-460.0,0.00021754,2]
[367193038,1750697461598,-460.0,0.00021754,2]
[367193039,1750697461607,-835.53,0.00021754,2]
[367193040,1750697461617,-460.0,0.00021754,2]
[367193041,1750697461630,-759.73,0.00021754,2]
[367193042,1750697461639,-460.0,0.00021754,2]
[367193043,1750697461649,-548.36,0.00021754,2]
[367193044,1750697461658,-1104.61,0.00021754,2]
[367193045,1750697461667,-460.0,0.00021754,2]
[367193046,1750697461677,-717.0,0.00021754,2]
[367193047,1750697461687,-555.53,0.00021754,2]
[367193048,1750697461697,-460.0,0.00021754,2]
[367193049,1750697461706,-460.0,0.00021754,2]
[367193050,1750697461716,-460.0,0.00021754,2]
[367193051,1750697461725,-460.0,0.00021754,2]
[367193052,1750697461735,-460.0,0.00021754,2]
[367193053,1750697461745,-460.0,0.00021754,2]
[367193054,1750697461754,-460.0,0.00021754,2]
[367193055,1750697461764,-460.0,0.00021754,2]
[367193056,1750697461773,-460.0,0.00021754,2]
[367193057,1750697461783,-513.86,0.00021754,2]
[367193058,1750697461793,-654.29,0.00021754,2]
[367193059,1750697461802,-1299.81,0.00021754,2]
[367193060,1750697461812,-460.0,0.00021754,2]
[367193061,1750697461821,-460.0,0.00021754,2]
[367193062,1750697461831,-460.0,0.00021754,2]
[367193063,1750697461841,-460.0,0.00021754,2]
[367193064,1750697461850,-460.0,0.00021754,2]
[367193065,1750697461859,-460.0,0.00021754,2]
[367193066,1750697461869,-460.0,0.00021754,2]
[367193067,1750697461882,-680.11,0.00021754,2]
[367193068,1750697461891,-460.0,0.00021766,2]
[367193069,1750697461901,-460.0,0.00021766,2]
[367193070,1750697461910,-460.0,0.00021766,2]
[367193071,1750697461920,-941.81,0.00021766,2]
[367193072,1750697461929,-1302.16,0.00021766,2]
[367193073,1750697461938,-460.0,0.00021766,2]
[367193074,1750697461948,-1027.63,0.00021766,2]
[367193075,1750697461957,-3007.82,0.00021766,2]
[367193076,1750697461967,-2258.64,0.00021766,2]
[367193077,1750697461976,-620.37,0.00021766,2]
[367193078,1750697461985,-802.09844257,0.00021781,2]
[367193079,1750697461995,-480.3,0.00021793,3]
[367193080,1750697462005,-805.9,0.00021802,2]
[367193081,1750697462014,-460.0,0.00021802,2]
[367193082,1750697462024,-618.81,0.00021802,2]
[367193083,1750697462033,-473.78,0.00021802,2]
[367193084,1750697462043,-272.61327056,0.00021802,2]
[367193085,1750697462052,-664.37,0.00021802,2]
[367193086,1750697462063,-618.48,0.00021802,2]
[367193087,1750697462072,-460.0,0.00021802,2]
[367193088,1750697462082,-730.09,0.00021802,2]
[367193089,1750697462091,-924.89,0.00021802,2]
[367193090,1750697462100,-742.52,0.00021803,2]
[367193091,1750697462110,-767.77,0.00021803,2]
[367193092,1750697462119,-460.0,0.00021803,2]
[367193093,1750697462132,-460.0,0.00021803,2]
[367193094,1750697462141,-460.0,0.00021803,2]
[367193095,1750697462150,-3331.18,0.00021803,2]
[367193096,1750697462159,-597.17,0.00021803,2]
[367193097,1750697462169,-1808.96,0.00021803,2]
[367193098,1750697462178,-522.83,0.00021803,2]
[367193099,1750697462189,-993.39,0.00021803,2]
[367193100,1750697462203,-460.0,0.00021803,2]
[367193101,1750697462212,-460.0,0.00021803,2]
[367193102,1750697462222,-1938.6,0.00021803,2]
[367193103,1750697462232,-4171.75,0.00021803,2]
[367193104,1750697462243,-460.0,0.00021803,2]
[367193105,1750697462252,-798.39,0.00021803,2]
[367193106,1750697462262,-662.12,0.00021803,2]
[367193107,1750697462272,-644.67,0.00021803,2]
[367193108,1750697462281,-1922.25,0.00021803,2]
[367193109,1750697462291,-500.56,0.00021803,2]
[367193110,1750697462300,-460.0,0.00021803,2]
[367193111,1750697462310,-1338.64,0.00021803,2]
[367193112,1750697462320,-2510.12,0.00021803,2]
[367193113,1750697462330,-460.0,0.00021803,2]
[367193114,1750697462341,-1996.8,0.00021803,2]
[367193115,1750697462351,-460.0,0.00021803,2]
[367193116,1750697462362,-945.39,0.00021803,2]
[367193117,1750697462373,-4607.43,0.00021803,2]
[367193118,1750697462383,-460.0,0.00021803,2]
[367193119,1750697462393,-607.26,0.00021803,2]
[367193120,1750697462403,-460.0,0.00021803,2]
[367193121,1750697462412,-1000.0,0.00021813,2]
[367193122,1750697462422,-503.97551977,0.00021813,2]
[367193123,1750697462432,-500.0,0.00021813,2]
[367193124,1750697462442,-155.0,0.00021853,2]
[367193125,1750697462451,-460.0,0.00021854,2]
[367193126,1750697462461,-231.85422467,0.00021854,2]
[367193127,1750697462471,-460.0,0.00021854,2]
[367193128,1750697462480,-585.66811992,0.00021854,2]
[367193129,1750697462490,-560.7576648,0.00021854,2]
[367193130,1750697462500,-460.0,0.00021854,2]
[367193131,1750697462510,-463.27,0.00021854,2]
[367193132,1750697462519,-839.46,0.00021854,2]
[367193133,1750697462529,-1010.76,0.00021854,2]
[367193134,1750697462539,-872.24,0.00021854,2]
[367193135,1750697462548,-196.06695826,0.00021854,2]
[367193136,1750697462558,-460.0,0.00021854,2]
[367193137,1750697462567,-460.0,0.00021854,2]
[367193138,1750697462579,-772.7,0.00021854,2]
[367193139,1750697462589,-460.0,0.00021854,2]
[367193140,1750697462598,-460.0,0.00021854,2]
[367193141,1750697462608,-899.58,0.00021854,2]
[367193142,1750697462618,-460.0,0.00021854,2]
[367193143,1750697462632,-460.0,0.00021854,2]
[367193144,1750697462642,-460.0,0.00021854,2]
[367193145,1750697462651,-668.36,0.00021854,2]
[367193146,1750697462661,-1784.25,0.00021854,2]
[367193147,1750697462671,-460.0,0.00021854,2]
[367193148,1750697462680,-460.0,0.00021854,2]
[367193149,1750697462690,-731.7,0.00021854,2]
[367193150,1750697462699,-460.0,0.00021854,2]
[367193151,1750697462709,-460.0,0.00021854,2]
[367193152,1750697462719,-460.0,0.00021854,2]
[367193153,1750697462728,-460.0,0.00021854,2]
[367193154,1750697462738,-697.54,0.00021854,2]
[367193155,1750697462748,-460.0,0.00021854,2]
[367193156,1750697462757,-2125.8,0.00021854,2]
[367193157,1750697462766,-460.0,0.00021854,2]
[367193158,1750697462776,-460.0,0.00021854,2]
[367193159,1750697462785,-460.0,0.00021854,2]
[367193160,1750697462795,-801.56,0.00021854,2]
[367193161,1750697462804,-847.26,0.00021854,2]
[367193162,1750697462814,-460.0,0.00021854,2]
[367193163,1750697462823,-460.0,0.00021854,2]
[367193164,1750697462833,-1053.09,0.00021854,2]
[367193165,1750697462842,-994.48,0.00021854,2]
[367193166,1750697462852,-460.0,0.00021854,2]
[367193167,1750697462862,-727.12,0.00021854,2]
[367193168,1750697462875,-525.06,0.00021854,2]
[367193169,1750697462884,-725.26,0.00021854,2]
[367193170,1750697462894,-1046.81,0.00021854,2]
[367193171,1750697462903,-2125.8,0.00021855,2]
[367193172,1750697462914,-460.0,0.00021864,2]
[367193173,1750697462923,-460.0,0.00021864,2]
[367193174,1750697462933,-720.83,0.00021864,2]
[367193175,1750697462942,-460.0,0.00021864,2]
[367193176,1750697462952,-460.0,0.00021864,2]
[367193177,1750697462961,-460.0,0.00021864,2]
[367193178,1750697462971,-460.0,0.00021864,2]
[367193179,1750697462980,-460.0,0.00021864,2]
[367193180,1750697462990,-460.0,0.00021864,2]
[367193181,1750697462999,-460.0,0.00021864,2]
[367193182,1750697463008,-2125.8,0.00021865,2]
[367193183,1750697463018,-2125.8,0.00021865,2]
[367193184,1750697463027,-2125.8,0.00021866,2]
[367193185,1750697463037,-2125.8,0.00021866,2]
[367193186,1750697463046,-2125.8,0.00021868,2]
[367193187,1750697463055,-3842.32,0.00021895,3]
[367193188,1750697463065,-960.58,0.00021895,3]
[367193189,1750697463075,-4677.02,0.00021905,3]
[367193190,1750697463085,-1921.16,0.00021905,3]
[367193191,1750697463095,-151.0,0.00021907,2]
[367193192,1750697463104,-205.184865,0.00021907,2]
[367193193,1750697463114,-708.949042,0.00021907,2]
[367193194,1750697463126,-708.949042,0.00021907,2]
[367193195,1750697463136,-213.63163053,0.0002191,3]
[367193196,1750697463146,-846.53928378,0.0002191,3]
[367193197,1750697463155,-160.0,0.0002191,3]
[367193198,1750697463165,-12553.69357174,0.0002191,3]
[367193199,1750697463175,-160.0,0.0002191,3]
[367193200,1750697463184,-460.0,0.00021915,2]
[367193201,1750697463197,-524.08,0.00021915,2]
[367193202,1750697463207,-524.08,0.00021915,2]
[367193203,1750697463217,-768.34,0.00021915,2]
[367193204,1750697463227,-768.34,0.00021915,2]
[367193205,1750697463237,-460.0,0.00021915,2]
[367193206,1750697463295,-462.01,0.00021915,2]
[367193207,1750697463306,-1080.4,0.00021915,2]
[367193208,1750697463317,-389.40653647,0.00021915,2]
[367193209,1750697463327,-523.6,0.00021915,2]
[367193210,1750697463337,-460.0,0.00021915,2]
[367193211,1750697463346,-666.99,0.00021915,2]
[367193212,1750697463357,-460.0,0.00021915,2]
[367193213,1750697463366,-649.66,0.00021915,2]
[367193214,1750697463379,-460.0,0.00021915,2]
[367193215,1750697463390,-577.48,0.00021915,2]
[367193216,1750697463399,-460.0,0.00021915,2]
[367193217,1750697463409,-460.0,0.00021915,2]
[367193218,1750697463418,-803.94,0.00021915,2]
[367193219,1750697463428,-941.33,0.00021915,2]
[367193220,1750697463439,-460.0,0.00021915,2]
[367193221,1750697463449,-463.65,0.00021915,2]
[367193222,1750697463459,-460.0,0.00021915,2]
[367193223,1750697463470,-734.18,0.00021915,2]
[367193224,1750697463480,-460.0,0.00021915,2]
[367193225,1750697463490,-632.86,0.00021915,2]
[367193226,1750697463500,-460.0,0.00021915,2]
[367193227,1750697463510,-460.0,0.00021915,2]
[367193228,1750697463520,-460.0,0.00021915,2]
[367193229,1750697463530,-586.65,0.00021915,2]
[367193230,1750697463540,-783.14,0.00021915,2]
[367193231,1750697463549,-460.0,0.00021915,2]
[367193232,1750697463560,-1907.71,0.00021915,2]
[367193233,1750697463570,-691.12,0.00021915,2]
[367193234,1750697463580,-460.0,0.00021915,2]
[367193235,1750697463590,-460.0,0.00021915,2]
[367193236,1750697463599,-462.32,0.00021915,2]
[367193237,1750697463609,-460.0,0.00021915,2]
[367193238,1750697463619,-895.18,0.00021915,2]
[367193239,1750697463634,-460.0,0.00021915,2]
[367193240,1750697463644,-460.0,0.00021915,2]
[367193241,1750697463654,-677.91,0.00021915,2]
[367193242,1750697463664,-460.0,0.00021915,2]
[367193243,1750697463674,-767.32,0.00021915,2]
[367193244,1750697463684,-984.13,0.00021915,2]
[367193245,1750697463694,-801.12,0.00021915,2]
[367193246,1750697463703,-1131.78,0.00021915,2]
[367193247,1750697463713,-2069.55,0.00021915,2]
[367193248,1750697463722,-1331.56,0.00021915,2]
[367193249,1750697463732,-574.96,0.00021915,2]
[367193250,1750697463741,-530.44,0.00021915,2]
[367193251,1750697463751,-460.0,0.00021915,2]
[367193252,1750697463760,-976.96,0.00021915,2]
[367193253,1750697463770,-2037.71,0.00021915,2]
[367193254,1750697463781,-283.27385829,0.00021915,2]
[367193255,1750697463799,-1166.86,0.00021915,2]
[367193256,1750697463809,-658.74,0.00021915,2]
[367193257,1750697463819,-460.0,0.00021915,2]
[367193258,1750697463828,-460.0,0.00021915,2]
[367193259,1750697463838,-645.9,0.00021915,2]
[367193260,1750697463847,-607.83,0.00021915,2]
[367193261,1750697463857,-548.66,0.00021915,2]
[367193262,1750697463866,-460.0,0.00021916,2]
[367193263,1750697463878,-764.48,0.00021916,2]
[367193264,1750697463887,-314.64814721,0.00021916,2]
[367193265,1750697463897,-821.95,0.00021916,2]
[367193266,1750697463907,-616.46,0.00021916,2]
[367193267,1750697463917,-623.62,0.00021916,2]
[367193268,1750697463926,-460.0,0.00021916,2]
[367193269,1750697463935,-460.0,0.00021916,2]
[367193270,1750697463945,-468.54,0.00021916,2]
[367193271,1750697463954,-460.0,0.00021916,2]
[367193272,1750697463964,-460.0,0.00021916,2]
[367193273,1750697463973,-460.0,0.00021916,2]
[367193274,1750697463982,-460.0,0.00021916,2]
[367193275,1750697463992,-460.0,0.00021916,2]
[367193276,1750697464002,-460.0,0.00021916,2]
[367193277,1750697464011,-460.0,0.00021916,2]
[367193278,1750697464021,-699.97,0.00021916,2]
[367193279,1750697464031,-984.08,0.00021916,2]
[367193280,1750697464041,-2304.0,0.00021916,2]
[367193281,1750697464051,-845.92,0.00021916,2]
[367193282,1750697464060,-773.26,0.00021916,2]
[367193283,1750697464070,-3459.6,0.00021916,2]
[367193284,1750697464080,-460.0,0.00021916,2]
[367193285,1750697464090,-460.0,0.00021916,2]
[367193286,1750697464099,-573.77,0.00021916,2]
[367193287,1750697464109,-460.0,0.00021916,2]
[367193288,1750697464118,-532.82,0.00021916,2]
[367193289,1750697464131,-460.0,0.00021916,2]
[367193290,1750697464141,-1283.0,0.00021916,2]
[367193291,1750697464151,-788.52,0.00021916,2]
[367193292,1750697464160,-5163.31,0.00021916,2]
[367193293,1750697464170,-1680.77,0.00021916,2]
[367193294,1750697464179,-587.82,0.00021916,2]
[367193295,1750697464188,-12520.38,0.00021916,2]
[367193296,1750697464201,-970.2,0.00021916,2]
[367193297,1750697464211,-1785.46,0.00021916,2]
[367193298,1750697464220,-160.841049,0.00021916,2]
[367193299,1750697464231,-151.0,0.00021916,2]
[367193300,1750697464241,-151.0,0.00021916,2]
[367193301,1750697464251,-4776.5,0.00021916,2]
[367193302,1750697464261,-151.0,0.00021916,2]
[367193303,1750697464272,-1188.31,0.00021916,2]
[367193304,1750697464282,-1838.21,0.00021916,2]
[367193305,1750697464292,-151.0,0.00021916,2]
[367193306,1750697464301,-151.0,0.00021916,2]
[367193307,1750697464311,-460.0,0.00021916,2]
[367193308,1750697464322,-614.46,0.00021917,2]
[367193309,1750697464331,-460.0,0.00021917,2]
[367193310,1750697464342,-617.88,0.00021917,2]
[367193311,1750697464352,-1431.97,0.00021917,2]
[367193312,1750697464363,-460.0,0.00021917,2]
[367193313,1750697464373,-460.0,0.00021917,2]
[367193314,1750697464384,-909.95,0.00021917,2]
[367193315,1750697464394,-460.0,0.00021917,2]
[367193316,1750697464404,-526.76,0.00021917,2]
[367193317,1750697464417,-460.0,0.00021917,2]
[367193318,1750697464432,-780.77,0.00021917,2]
[367193319,1750697464451,-460.0,0.00021917,2]
[367193320,1750697464460,-460.0,0.00021917,2]
[367193321,1750697464470,-495.61,0.00021917,2]
[367193322,1750697464480,-460.0,0.00021917,2]
[367193323,1750697464490,-460.0,0.00021917,2]
[367193324,1750697464500,-383.86131689,0.00021917,2]
[367193325,1750697464509,-423.86809494,0.00021917,2]
[367193326,1750697464518,-460.0,0.00021917,2]
[367193327,1750697464528,-651.77,0.00021917,2]
[367193328,1750697464538,-585.51,0.00021917,2]
[367193329,1750697464547,-460.0,0.00021917,2]
[367193330,1750697464557,-460.0,0.00021917,2]
[367193331,1750697464568,-460.0,0.00021917,2]
[367193332,1750697464577,-460.0,0.00021917,2]
[367193333,1750697464587,-460.0,0.00021917,2]
[367193334,1750697464597,-2845.44,0.00021917,2]
[367193335,1750697464607,-500.0,0.00021917,2]
[367193336,1750697464616,-500.0,0.00021917,2]
[367193337,1750697464628,-500.0,0.00021917,2]
[367193338,1750697464638,-460.0,0.00021917,2]
[367193339,1750697464647,-806.82,0.00021917,2]
[367193340,1750697464657,-460.0,0.00021917,2]
[367193341,1750697464667,-662.46,0.00021917,2]
[367193342,1750697464677,-1029.25,0.00021917,2]
[367193343,1750697464686,-1895.61,0.00021917,2]
[367193344,1750697464695,-460.0,0.00021917,2]
[367193345,1750697464705,-1073.31,0.00021917,2]
[367193346,1750697464715,-1897.12,0.00021917,2]
[367193347,1750697464724,-460.0,0.00021917,2]
[367193348,1750697464734,-1134.25,0.00021917,2]
[367193349,1750697464744,-991.59,0.00021917,2]
[367193350,1750697464754,-460.0,0.00021917,2]
[367193351,1750697464765,-588.15,0.00021917,2]
[367193352,1750697464774,-460.0,0.00021917,2]
[367193353,1750697464784,-460.0,0.00021917,2]
[367193354,1750697464794,-460.0,0.00021917,2]
[367193355,1750697464803,-460.0,0.00021917,2]
[367193356,1750697464812,-870.3,0.00021917,2]
[367193357,1750697464822,-510.67,0.00021917,2]
[367193358,1750697464831,-1318.26,0.00021917,2]
[367193359,1750697464841,-460.0,0.00021917,2]
[367193360,1750697464850,-460.0,0.00021917,2]
[367193361,1750697464859,-807.85,0.00021917,2]
[367193362,1750697464868,-460.0,0.00021917,2]
[367193363,1750697464882,-523.74,0.00021917,2]
[367193364,1750697464891,-460.0,0.00021917,2]
[367193365,1750697464901,-460.0,0.00021917,2]
[367193366,1750697464911,-480.9,0.00021917,2]
[367193367,1750697464921,-317.62276215,0.00021917,2]
[367193368,1750697464931,-460.0,0.00021917,2]
[367193369,1750697464941,-709.92,0.00021917,2]
[367193370,1750697464951,-460.0,0.00021917,2]
[367193371,1750697464960,-151.0,0.00021917,2]
[367193372,1750697464970,-155.313187,0.00021917,2]
[367193373,1750697464979,-460.0,0.00021917,2]
[367193374,1750697464989,-926.56,0.00021917,2]
[367193375,1750697464998,-1047.54,0.00021917,2]
[367193376,1750697465008,-151.0,0.00021917,2]
[367193377,1750697465018,-151.0,0.00021917,2]
[367193378,1750697465028,-151.0,0.00021917,2]
[367193379,1750697465037,-151.0,0.00021917,2]
[367193380,1750697465047,-814.8,0.00021917,2]
[367193381,1750697465056,-460.0,0.00021917,2]
[367193382,1750697465066,-5076.91,0.00021917,2]
[367193383,1750697465077,-151.0,0.00021917,2]
[367193384,1750697465087,-460.0,0.00021917,2]
[367193385,1750697465096,-460.0,0.00021917,2]
[367193386,1750697465105,-151.0,0.00021917,2]
[367193387,1750697465116,-460.0,0.00021917,2]
[367193388,1750697465129,-639.64,0.00021917,2]
[367193389,1750697465139,-1458.11,0.00021917,2]
[367193390,1750697465150,-1180.24,0.00021917,2]
[367193391,1750697465160,-721.42,0.00021917,2]
[367193392,1750697465171,-3757.48,0.00021917,2]
[367193393,1750697465180,-460.0,0.00021917,2]
[367193394,1750697465191,-151.0,0.00021917,2]
[367193395,1750697465203,-799.52,0.00021917,2]
[367193396,1750697465214,-1092.87,0.00021917,2]
[367193397,1750697465223,-460.0,0.00021917,2]
[367193398,1750697465234,-460.0,0.00021917,2]
[367193399,1750697465245,-460.0,0.00021917,2]
[367193400,1750697465255,-863.84,0.00021917,2]
[367193401,1750697465265,-460.0,0.00021917,2]
[367193402,1750697465275,-460.0,0.00021917,2]
[367193403,1750697465285,-500.0,0.00021917,2]
[367193404,1750697465295,-500.0,0.00021917,2]
[367193405,1750697465315,-500.0,0.00021917,2]
[367193406,1750697465326,-500.0,0.00021917,2]
[367193407,1750697465337,-500.0,0.00021917,2]
[367193408,1750697465348,-500.0,0.00021917,2]
[367193409,1750697465358,-460.0,0.00021917,2]
[367193410,1750697465370,-1023.23,0.00021917,2]
[367193411,1750697465382,-500.0,0.00021917,2]
[367193412,1750697465393,-815.28,0.00021917,2]
[367193413,1750697465404,-500.0,0.00021917,2]
[367193414,1750697465415,-500.0,0.00021917,2]
[367193415,1750697465426,-151.0,0.00021917,2]
[367193416,1750697465437,-460.0,0.00021917,2]
[367193417,1750697465449,-485.2,0.00021917,2]
[367193418,1750697465459,-460.0,0.00021917,2]
[367193419,1750697465471,-460.18,0.00021917,2]
[367193420,1750697465481,-484.06279034,0.00021917,2]
[367193421,1750697465491,-219.31947409,0.00021917,2]
[367193422,1750697465502,-460.0,0.00021917,2]
[367193423,1750697465513,-644.42,0.00021917,2]
[367193424,1750697465523,-460.0,0.00021917,2]
[367193425,1750697465534,-460.0,0.00021917,2]
[367193426,1750697465546,-1098.44,0.00021917,2]
[367193427,1750697465557,-500.0,0.00021917,2]
[367193428,1750697465568,-749.34,0.00021917,2]
[367193429,1750697465579,-460.0,0.00021917,2]
[367193430,1750697465589,-151.0,0.00021918,2]
[367193431,1750697465599,-206.61473792,0.00021918,2]
[367193432,1750697465612,-1500.0,0.00021968,2]
[367193433,1750697465625,-544.00426276,0.00021968,2]
[367193434,1750697465636,-1000.0,0.00021968,2]
[367193435,1750697465646,-500.63881092,0.00021968,2]
[367193436,1750697465656,-500.0,0.00021968,2]
[367193437,1750697465667,-501.00085733,0.00021968,2]
[367193438,1750697465676,-500.0,0.00021968,2]
[367193439,1750697465687,-1500.0,0.00021968,2]
[367193440,1750697465698,-1000.51719088,0.00021968,2]
[367193441,1750697465708,-1000.0,0.00021968,2]
[367193442,1750697465718,-1000.0,0.00021973,2]
[367193443,1750697465728,-786.99970969,0.00021973,2]
[367193444,1750697465738,-2125.8,0.00021979,2]
[367193445,1750697465749,-460.0,0.00022028,2]
[367193446,1750697465759,-460.0,0.00022028,2]
[367193447,1750697465769,-460.0,0.00022028,2]
[367193448,1750697465779,-423.44280788,0.00022028,2]
[367193449,1750697465789,-460.0,0.00022028,2]
[367193450,1750697465800,-835.53,0.00022028,2]
[367193451,1750697465810,-460.0,0.00022028,2]
[367193452,1750697465821,-759.73,0.00022028,2]
[367193453,1750697465832,-460.0,0.00022028,2]
[367193454,1750697465843,-548.36,0.00022028,2]
[367193455,1750697465854,-1104.61,0.00022028,2]
[367193456,1750697465864,-460.0,0.00022028,2]
[367193457,1750697465879,-717.0,0.00022028,2]
[367193458,1750697465889,-555.53,0.00022028,2]
[367193459,1750697465899,-460.0,0.00022028,2]
[367193460,1750697465909,-460.0,0.00022028,2]
[367193461,1750697465919,-460.0,0.00022028,2]
[367193462,1750697465929,-460.0,0.00022028,2]
[367193463,1750697465940,-460.0,0.00022028,2]
[367193464,1750697465950,-460.0,0.00022028,2]
[367193465,1750697465960,-460.0,0.00022028,2]
[367193466,1750697465970,-460.0,0.00022028,2]
[367193467,1750697465980,-460.0,0.00022028,2]
[367193468,1750697465990,-513.86,0.00022028,2]
[367193469,1750697466000,-654.29,0.00022028,2]
[367193470,1750697466010,-1299.81,0.00022028,2]
[367193471,1750697466020,-460.0,0.00022028,2]
[367193472,1750697466030,-460.0,0.00022028,2]
[367193473,1750697466040,-460.0,0.00022028,2]
[367193474,1750697466050,-460.0,0.00022028,2]
[367193475,1750697466060,-460.0,0.00022028,2]
[367193476,1750697466070,-460.0,0.00022028,2]
[367193477,1750697466080,-460.0,0.00022028,2]
[367193478,1750697466089,-680.11,0.00022028,2]
[367193479,1750697466099,-460.0,0.0002204,2]
[367193480,1750697466110,-460.0,0.0002204,2]
[367193481,1750697466119,-460.0,0.0002204,2]
[367193482,1750697466132,-941.81,0.0002204,2]
[367193483,1750697466142,-1302.16,0.0002204,2]
[367193484,1750697466152,-460.0,0.0002204,2]
[367193485,1750697466162,-1027.63,0.0002204,2]
[367193486,1750697466172,-3007.82,0.0002204,2]
[367193487,1750697466182,-2258.64,0.0002204,2]
[367193488,1750697466192,-620.37,0.0002204,2]
[367193489,1750697466204,-151.0,0.0002206,2]
[367193490,1750697466214,-805.9,0.00022076,2]
[367193491,1750697466224,-460.0,0.00022076,2]
[367193492,1750697466234,-618.81,0.00022076,2]
[367193493,1750697466244,-473.78,0.00022076,2]
[367193494,1750697466254,-664.37,0.00022076,2]
[367193495,1750697466264,-618.48,0.00022076,2]
[367193496,1750697466275,-394.15175073,0.00022076,2]
[367193497,1750697466285,-730.09,0.00022076,2]
[367193498,1750697466295,-924.89,0.00022076,2]
[367193499,1750697466305,-742.52,0.00022077,2]
[367193500,1750697466315,-767.77,0.00022077,2]
[367193501,1750697466325,-460.0,0.00022077,2]
[367193502,1750697466335,-460.0,0.00022077,2]
[367193503,1750697466346,-460.0,0.00022077,2]
[367193504,1750697466356,-3331.18,0.00022077,2]
[367193505,1750697466366,-597.17,0.00022077,2]
[367193506,1750697466378,-1808.96,0.00022077,2]
[367193507,1750697466389,-522.83,0.00022077,2]
[367193508,1750697466399,-993.39,0.00022077,2]
[367193509,1750697466410,-460.0,0.00022077,2]
[367193510,1750697466421,-445.15371705,0.00022077,2]
[367193511,1750697466430,-1938.6,0.00022077,2]
[367193512,1750697466440,-4171.75,0.00022077,2]
[367193513,1750697466451,-460.0,0.00022077,2]
[367193514,1750697466461,-798.39,0.00022077,2]
[367193515,1750697466472,-662.12,0.00022077,2]
[367193516,1750697466483,-644.67,0.00022077,2]
[367193517,1750697466492,-1922.25,0.00022077,2]
[367193518,1750697466503,-500.56,0.00022077,2]
[367193519,1750697466513,-460.0,0.00022077,2]
[367193520,1750697466522,-1338.64,0.00022077,2]
[367193521,1750697466532,-2510.12,0.00022077,2]